[Event "Late-Titled-Tuesday-Blitz-September-12-2023"]
[Site "Chess.com"]
[Date "2023.09.12"]
[Round "8"]
[White "MajorCoast"]
[Black "Eloist"]
[Result "0-1"]
[WhiteElo "2291"]
[BlackElo "2497"]
[TimeControl "180+1"]
[EndTime "15:24:14 PDT"]
[Termination "Eloist won on time"]

1. d4 {[%clk 0:03:00.9]} 1... e6 {[%clk 0:02:58]} 2. Nf3 {[%clk 0:03:01.5]} 2...
Nf6 {[%clk 0:02:57.2]} 3. Bf4 {[%clk 0:03:02]} 3... b6 {[%clk 0:02:56.2]} 4. e3
{[%clk 0:03:02.6]} 4... Bb7 {[%clk 0:02:55.5]} 5. a4 {[%clk 0:02:59.9]} 5... c5
{[%clk 0:02:46.2]} 6. Nbd2 {[%clk 0:02:59.1]} 6... Be7 {[%clk 0:02:41.8]} 7. Bd3
{[%clk 0:02:49.6]} 7... Nh5 {[%clk 0:02:37]} 8. Bg3 {[%clk 0:02:44.8]} 8... Nc6
{[%clk 0:02:35.7]} 9. c3 {[%clk 0:02:38.1]} 9... g6 {[%clk 0:02:33.3]} 10. Ne4
{[%clk 0:02:19]} 10... Nxg3 {[%clk 0:02:30.2]} 11. hxg3 {[%clk 0:02:16.9]} 11...
d5 {[%clk 0:02:29.6]} 12. Ned2 {[%clk 0:02:14]} 12... O-O {[%clk 0:02:26.4]} 13.
Ne5 {[%clk 0:02:02.6]} 13... Nxe5 {[%clk 0:02:22.9]} 14. dxe5 {[%clk 0:02:03.5]}
14... d4 {[%clk 0:02:13.1]} 15. exd4 {[%clk 0:01:24.9]} 15... cxd4 {[%clk
0:02:11.6]} 16. c4 {[%clk 0:01:24.2]} 16... Bxg2 {[%clk 0:02:09]} 17. Rh2 {[%clk
0:01:07.8]} 17... Bc6 {[%clk 0:02:08.2]} 18. g4 {[%clk 0:01:08.3]} 18... Bg5
{[%clk 0:02:04.1]} 19. Nf3 {[%clk 0:01:02]} 19... Bf4 {[%clk 0:02:03.8]} 20. Rh3
{[%clk 0:00:56.1]} 20... Bxf3 {[%clk 0:01:59.6]} 21. Qxf3 {[%clk 0:00:54.7]}
21... Qg5 {[%clk 0:01:55.3]} 22. Ke2 {[%clk 0:00:50.8]} 22... Qxe5+ {[%clk
0:01:54.4]} 23. Kd1 {[%clk 0:00:45.6]} 23... f5 {[%clk 0:01:50]} 24. gxf5 {[%clk
0:00:39.2]} 24... exf5 {[%clk 0:01:47.2]} 25. Kc2 {[%clk 0:00:38.2]} 25... Bg5
{[%clk 0:01:38.5]} 26. Rah1 {[%clk 0:00:35.4]} 26... h6 {[%clk 0:01:32.3]} 27.
Qg2 {[%clk 0:00:24.6]} 27... Kg7 {[%clk 0:01:20.9]} 28. Qb7+ {[%clk 0:00:21.9]}
28... Qe7 {[%clk 0:00:56.7]} 29. Qxe7+ {[%clk 0:00:18]} 29... Bxe7 {[%clk
0:00:57.6]} 30. Rxh6 {[%clk 0:00:18.4]} 30... Rh8 {[%clk 0:00:57]} 31. Rxh8
{[%clk 0:00:17.8]} 31... Rxh8 {[%clk 0:00:57.7]} 32. Rxh8 {[%clk 0:00:18]} 32...
Kxh8 {[%clk 0:00:58.4]} 33. Kd1 {[%clk 0:00:17]} 33... Kg7 {[%clk 0:00:58.6]}
34. Ke2 {[%clk 0:00:17.2]} 34... Kf6 {[%clk 0:00:59.1]} 35. Kf3 {[%clk
0:00:15.6]} 35... Ke5 {[%clk 0:00:58.1]} 36. b3 {[%clk 0:00:15.3]} 36... g5
{[%clk 0:00:58.1]} 37. Bc2 {[%clk 0:00:15]} 37... Bf8 {[%clk 0:00:52.7]} 38. Bd3
{[%clk 0:00:15.2]} 38... g4+ {[%clk 0:00:52.7]} 39. Ke2 {[%clk 0:00:15.2]} 39...
Bb4 {[%clk 0:00:50.9]} 40. Bc2 {[%clk 0:00:15.1]} 40... Kf4 {[%clk 0:00:49.4]}
41. Bd3 {[%clk 0:00:15.2]} 41... a5 {[%clk 0:00:47.4]} 42. Bc2 {[%clk
0:00:15.3]} 42... Kg5 {[%clk 0:00:42.3]} 43. Bd3 {[%clk 0:00:15.7]} 43... f4
{[%clk 0:00:42.2]} 44. Bc2 {[%clk 0:00:15.6]} 44... Kh4 {[%clk 0:00:42.1]} 45.
Kf1 {[%clk 0:00:14.9]} 45... g3 {[%clk 0:00:40.4]} 46. fxg3+ {[%clk 0:00:14.7]}
46... Kxg3 {[%clk 0:00:40.7]} 47. Be4 {[%clk 0:00:12.6]} 47... f3 {[%clk
0:00:39.4]} 48. Bd5 {[%clk 0:00:12]} 48... Bd2 {[%clk 0:00:37.2]} 49. Be4 {[%clk
0:00:11.9]} 49... Kf4 {[%clk 0:00:37.2]} 50. Bc2 {[%clk 0:00:11.9]} 50... Ke3
{[%clk 0:00:36.7]} 51. Bg6 {[%clk 0:00:10.6]} 51... d3 {[%clk 0:00:35.3]} 52.
Bf5 {[%clk 0:00:09.3]} 52... Bb4 {[%clk 0:00:35.1]} 53. Bg6 {[%clk 0:00:08.3]}
53... Kd2 {[%clk 0:00:28.6]} 54. Bf5 {[%clk 0:00:06.8]} 54... Bc5 {[%clk
0:00:28]} 55. Be4 {[%clk 0:00:06.3]} 55... f2 {[%clk 0:00:27]} 56. Bf5 {[%clk
0:00:06.3]} 56... Kc3 {[%clk 0:00:27.2]} 57. Be4 {[%clk 0:00:06]} 57... d2
{[%clk 0:00:25.2]} 58. Bf3 {[%clk 0:00:05.6]} 58... Kxb3 {[%clk 0:00:24.7]} 59.
Bd1+ {[%clk 0:00:05.9]} 59... Kxc4 {[%clk 0:00:24.5]} 60. Bc2 {[%clk 0:00:05.4]}
60... b5 {[%clk 0:00:22.7]} 61. axb5 {[%clk 0:00:04.6]} 61... Kxb5 {[%clk
0:00:23.6]} 62. Bd1 {[%clk 0:00:04.6]} 62... a4 {[%clk 0:00:23.7]} 63. Bc2
{[%clk 0:00:03.5]} 63... Kb4 {[%clk 0:00:22.9]} 0-1

[Event "Late-Titled-Tuesday-Blitz-September-12-2023"]
[Site "Chess.com"]
[Date "2023.09.12"]
[Round "8"]
[White "IngOscarArdila"]
[Black "lluiss"]
[Result "1-0"]
[WhiteElo "2261"]
[BlackElo "2159"]
[TimeControl "180+1"]
[EndTime "15:24:16 PDT"]
[Termination "IngOscarArdila won on time"]

1. d4 {[%clk 0:02:59.7]} 1... Nf6 {[%clk 0:02:58.5]} 2. c4 {[%clk 0:02:59.4]}
2... g6 {[%clk 0:02:58.4]} 3. Nc3 {[%clk 0:02:59.6]} 3... d5 {[%clk 0:02:59]} 4.
cxd5 {[%clk 0:02:58.6]} 4... Nxd5 {[%clk 0:02:59.9]} 5. e4 {[%clk 0:02:58.9]}
5... Nxc3 {[%clk 0:03:00]} 6. bxc3 {[%clk 0:02:59.8]} 6... Bg7 {[%clk 0:03:00]}
7. Bc4 {[%clk 0:03:00.4]} 7... O-O {[%clk 0:02:59.6]} 8. Ne2 {[%clk 0:03:00.7]}
8... c5 {[%clk 0:03:00.1]} 9. O-O {[%clk 0:02:59.4]} 9... Nc6 {[%clk 0:03:00.5]}
10. Be3 {[%clk 0:02:59.6]} 10... cxd4 {[%clk 0:03:01.1]} 11. cxd4 {[%clk
0:02:59.6]} 11... Na5 {[%clk 0:03:01.5]} 12. Bd3 {[%clk 0:02:59.3]} 12... Nc6
{[%clk 0:03:01.8]} 13. Bc4 {[%clk 0:02:50.5]} 13... Na5 {[%clk 0:03:00.5]} 14.
Bd3 {[%clk 0:02:45.9]} 14... Nc6 {[%clk 0:03:00.3]} 15. Bc2 {[%clk 0:02:44.6]}
15... b6 {[%clk 0:02:59.4]} 16. Rc1 {[%clk 0:02:44]} 16... Ba6 {[%clk
0:02:58.8]} 17. d5 {[%clk 0:02:37.9]} 17... Na5 {[%clk 0:02:45.1]} 18. Bd3
{[%clk 0:02:30.8]} 18... Bxd3 {[%clk 0:02:37]} 19. Qxd3 {[%clk 0:02:31.7]} 19...
Qd7 {[%clk 0:02:35.6]} 20. Rfd1 {[%clk 0:02:21.1]} 20... Rac8 {[%clk 0:02:30.8]}
21. Bd4 {[%clk 0:02:15.1]} 21... Rxc1 {[%clk 0:02:21.7]} 22. Rxc1 {[%clk
0:02:14.4]} 22... Rc8 {[%clk 0:02:20]} 23. Rxc8+ {[%clk 0:02:09.5]} 23... Qxc8
{[%clk 0:02:19.3]} 24. Bxg7 {[%clk 0:02:09.6]} 24... Kxg7 {[%clk 0:02:19.3]} 25.
h3 {[%clk 0:02:09.7]} 25... Qc4 {[%clk 0:02:16.9]} 26. Qxc4 {[%clk 0:02:01.5]}
26... Nxc4 {[%clk 0:02:16.1]} 27. Nd4 {[%clk 0:02:01.5]} 27... a6 {[%clk
0:01:45.4]} 28. Kf1 {[%clk 0:01:46.8]} 28... Kf6 {[%clk 0:01:36.5]} 29. f3
{[%clk 0:01:40.3]} 29... e6 {[%clk 0:01:32.9]} 30. dxe6 {[%clk 0:01:37.7]} 30...
fxe6 {[%clk 0:01:32.9]} 31. Ke2 {[%clk 0:01:37.9]} 31... e5 {[%clk 0:01:29.3]}
32. Nc6 {[%clk 0:01:28.5]} 32... b5 {[%clk 0:01:23.3]} 33. Nb4 {[%clk
0:01:26.1]} 33... a5 {[%clk 0:01:19.6]} 34. Nd5+ {[%clk 0:01:25.9]} 34... Kg5
{[%clk 0:01:14.3]} 35. g3 {[%clk 0:01:25]} 35... Nd6 {[%clk 0:01:10.7]} 36. h4+
{[%clk 0:01:21.3]} 36... Kh6 {[%clk 0:01:09.6]} 37. Kd3 {[%clk 0:01:20.1]} 37...
g5 {[%clk 0:01:07.8]} 38. hxg5+ {[%clk 0:01:13.8]} 38... Kxg5 {[%clk 0:01:07.9]}
39. f4+ {[%clk 0:01:05.9]} 39... exf4 {[%clk 0:01:02]} 40. gxf4+ {[%clk
0:01:06.8]} 40... Kg4 {[%clk 0:01:02]} 41. Kd4 {[%clk 0:01:03.7]} 41... h5
{[%clk 0:01:00]} 42. f5 {[%clk 0:00:54.2]} 42... h4 {[%clk 0:00:53.2]} 43. Ke5
{[%clk 0:00:45.5]} 43... Nc4+ {[%clk 0:00:46.7]} 44. Ke6 {[%clk 0:00:43.9]}
44... h3 {[%clk 0:00:47]} 45. f6 {[%clk 0:00:43.2]} 45... h2 {[%clk 0:00:46.2]}
46. f7 {[%clk 0:00:43.7]} 46... h1=Q {[%clk 0:00:46.1]} 47. Nf6+ {[%clk
0:00:37.1]} 47... Kg3 {[%clk 0:00:28.3]} 48. f8=Q {[%clk 0:00:38]} 48... Qh3+
{[%clk 0:00:28.1]} 49. Ke7 {[%clk 0:00:33.7]} 49... Qg2 {[%clk 0:00:10.7]} 50.
Qb8+ {[%clk 0:00:31]} 50... Kh4 {[%clk 0:00:05.8]} 51. Qf4+ {[%clk 0:00:27.5]}
51... Kh3 {[%clk 0:00:05]} 52. Qh6+ {[%clk 0:00:25.7]} 52... Kg3 {[%clk
0:00:05.4]} 53. Qg5+ {[%clk 0:00:17.2]} 53... Kf2 {[%clk 0:00:05.6]} 54. Qf4+
{[%clk 0:00:12.7]} 54... Kg1 {[%clk 0:00:05]} 55. e5 {[%clk 0:00:10.6]} 55...
Qb7+ {[%clk 0:00:03.9]} 56. Nd7 {[%clk 0:00:10.8]} 56... Qd5 {[%clk 0:00:02]}
57. e6 {[%clk 0:00:07.9]} 1-0

[Event "Late-Titled-Tuesday-Blitz-September-12-2023"]
[Site "Chess.com"]
[Date "2023.09.12"]
[Round "8"]
[White "sergiochess83"]
[Black "HansOnTwitch"]
[Result "1/2-1/2"]
[WhiteElo "2923"]
[BlackElo "3076"]
[TimeControl "180+1"]
[EndTime "15:24:21 PDT"]
[Termination "Game drawn by repetition"]

1. d4 {[%clk 0:02:54.4]} 1... Nf6 {[%clk 0:02:59]} 2. c4 {[%clk 0:02:52.8]} 2...
g6 {[%clk 0:02:59.4]} 3. Nc3 {[%clk 0:02:51.9]} 3... Bg7 {[%clk 0:03:00]} 4. e4
{[%clk 0:02:51.7]} 4... d6 {[%clk 0:02:59.9]} 5. Be2 {[%clk 0:02:51.9]} 5... O-O
{[%clk 0:02:59.9]} 6. Be3 {[%clk 0:02:51.1]} 6... Nc6 {[%clk 0:03:00.4]} 7. d5
{[%clk 0:02:47.1]} 7... Ne5 {[%clk 0:03:00.4]} 8. h3 {[%clk 0:02:46.8]} 8... e6
{[%clk 0:02:55.7]} 9. Nf3 {[%clk 0:02:44.6]} 9... Nxf3+ {[%clk 0:02:49.4]} 10.
Bxf3 {[%clk 0:02:44.2]} 10... Re8 {[%clk 0:02:43.8]} 11. O-O {[%clk 0:02:40.7]}
11... Nd7 {[%clk 0:02:42.3]} 12. Qd2 {[%clk 0:02:33.7]} 12... a5 {[%clk
0:02:41]} 13. Rfe1 {[%clk 0:02:22.6]} 13... Nc5 {[%clk 0:02:28.6]} 14. Bg5
{[%clk 0:02:09.5]} 14... Qd7 {[%clk 0:02:24.8]} 15. Rad1 {[%clk 0:02:05.4]}
15... e5 {[%clk 0:02:17.8]} 16. Be3 {[%clk 0:01:41.1]} 16... b6 {[%clk
0:02:16.5]} 17. b3 {[%clk 0:01:40.3]} 17... f5 {[%clk 0:02:16.2]} 18. exf5
{[%clk 0:01:35.1]} 18... gxf5 {[%clk 0:02:15.6]} 19. Bh5 {[%clk 0:01:35]} 19...
Rf8 {[%clk 0:02:04.6]} 20. f4 {[%clk 0:01:35.2]} 20... e4 {[%clk 0:02:03.8]} 21.
Be2 {[%clk 0:01:31.4]} 21... Qf7 {[%clk 0:01:51.4]} 22. Nb5 {[%clk 0:01:28.5]}
22... Kh8 {[%clk 0:01:43.2]} 23. Kh1 {[%clk 0:01:27.2]} 23... Rg8 {[%clk
0:01:41.2]} 24. Bf1 {[%clk 0:01:26.6]} 24... Bf6 {[%clk 0:01:38.6]} 25. Bd4
{[%clk 0:01:20.9]} 25... Rg7 {[%clk 0:01:38.1]} 26. Re3 {[%clk 0:01:13.7]} 26...
Ba6 {[%clk 0:01:36.9]} 27. Qc3 {[%clk 0:00:58.9]} 27... Rf8 {[%clk 0:01:26.8]}
28. Bxf6 {[%clk 0:00:54.1]} 28... Qxf6 {[%clk 0:01:27.7]} 29. Qxf6 {[%clk
0:00:54.2]} 29... Rxf6 {[%clk 0:01:28.6]} 30. Nd4 {[%clk 0:00:54.5]} 30... Bc8
{[%clk 0:01:24.6]} 31. Kh2 {[%clk 0:00:54.7]} 31... h5 {[%clk 0:01:20.5]} 32. h4
{[%clk 0:00:52]} 32... Kh7 {[%clk 0:01:10.6]} 33. g3 {[%clk 0:00:51.6]} 33...
Bd7 {[%clk 0:01:09.7]} 34. a3 {[%clk 0:00:49.7]} 34... Rf8 {[%clk 0:01:04.2]}
35. Kg2 {[%clk 0:00:48.8]} 35... Ra8 {[%clk 0:00:56.7]} 36. Kf2 {[%clk
0:00:48.9]} 36... Kg6 {[%clk 0:00:54.8]} 37. Be2 {[%clk 0:00:47.9]} 37... Ra7
{[%clk 0:00:49.5]} 38. Rc1 {[%clk 0:00:45.5]} 38... Rg8 {[%clk 0:00:49.5]} 39.
Rec3 {[%clk 0:00:37.4]} 39... Rga8 {[%clk 0:00:48]} 40. Re3 {[%clk 0:00:37.3]}
40... Nb7 {[%clk 0:00:42.4]} 41. Rcc3 {[%clk 0:00:36.5]} 41... Nd8 {[%clk
0:00:41.2]} 42. Rc1 {[%clk 0:00:35.7]} 42... Nf7 {[%clk 0:00:40.7]} 43. Rd1
{[%clk 0:00:35.3]} 43... Nh6 {[%clk 0:00:40.7]} 44. Rc3 {[%clk 0:00:34.7]} 44...
Ng8 {[%clk 0:00:40.1]} 45. Nc2 {[%clk 0:00:32.7]} 45... Nf6 {[%clk 0:00:36.5]}
46. Ne3 {[%clk 0:00:32.9]} 46... Rb8 {[%clk 0:00:37.1]} 47. Rdc1 {[%clk
0:00:32.5]} 47... Rab7 {[%clk 0:00:32.2]} 48. R3c2 {[%clk 0:00:31.6]} 48... Ra7
{[%clk 0:00:20.3]} 49. Rd2 {[%clk 0:00:31.9]} 49... b5 {[%clk 0:00:20]} 50. c5
{[%clk 0:00:31.9]} 50... Be8 {[%clk 0:00:16.4]} 51. c6 {[%clk 0:00:18.9]} 51...
Bf7 {[%clk 0:00:16.3]} 52. Rd4 {[%clk 0:00:18.7]} 52... Rb6 {[%clk 0:00:11.9]}
53. Rc2 {[%clk 0:00:18.5]} 53... Ra8 {[%clk 0:00:12.3]} 54. Rc1 {[%clk
0:00:18.7]} 54... Ng8 {[%clk 0:00:09.3]} 55. Rc2 {[%clk 0:00:18.8]} 55... Ne7
{[%clk 0:00:10]} 56. Rc1 {[%clk 0:00:19.1]} 56... Rg8 {[%clk 0:00:09.1]} 57. Rc2
{[%clk 0:00:19.4]} 57... Kf6 {[%clk 0:00:09.5]} 58. Rc1 {[%clk 0:00:20]} 58...
Rg7 {[%clk 0:00:10.1]} 59. Rc2 {[%clk 0:00:20.1]} 59... Rb8 {[%clk 0:00:08.7]}
60. Rc1 {[%clk 0:00:18.9]} 60... Rb6 {[%clk 0:00:06.7]} 61. Rc2 {[%clk
0:00:18.7]} 61... Bg6 {[%clk 0:00:07.4]} 62. Rc1 {[%clk 0:00:18.8]} 62... Be8
{[%clk 0:00:08]} 63. Rc2 {[%clk 0:00:18.6]} 63... Bf7 {[%clk 0:00:08.7]} 64. Rc3
{[%clk 0:00:18.4]} 64... Rb8 {[%clk 0:00:08.1]} 65. Rc1 {[%clk 0:00:18.6]} 65...
Rbg8 {[%clk 0:00:05]} 66. Rg1 {[%clk 0:00:18.4]} 66... Rb8 {[%clk 0:00:05.4]}
67. Rc1 {[%clk 0:00:18.3]} 1/2-1/2

[Event "Late-Titled-Tuesday-Blitz-September-12-2023"]
[Site "Chess.com"]
[Date "2023.09.12"]
[Round "8"]
[White "m_ezat"]
[Black "Ducke13"]
[Result "1-0"]
[WhiteElo "2666"]
[BlackElo "2506"]
[TimeControl "180+1"]
[EndTime "15:24:21 PDT"]
[Termination "m_ezat won by checkmate"]

1. d4 {[%clk 0:03:00.9]} 1... Nf6 {[%clk 0:02:52.5]} 2. c4 {[%clk 0:03:00.7]}
2... g6 {[%clk 0:02:52.7]} 3. Nc3 {[%clk 0:03:00.6]} 3... d5 {[%clk 0:02:52]} 4.
Bf4 {[%clk 0:02:57.3]} 4... Bg7 {[%clk 0:02:46.5]} 5. e3 {[%clk 0:02:55.4]} 5...
O-O {[%clk 0:02:45]} 6. Rc1 {[%clk 0:02:54.2]} 6... a6 {[%clk 0:02:19.6]} 7. Nf3
{[%clk 0:02:50.7]} 7... c6 {[%clk 0:02:15.9]} 8. h3 {[%clk 0:02:46.5]} 8... Nbd7
{[%clk 0:02:07.6]} 9. cxd5 {[%clk 0:02:44.6]} 9... cxd5 {[%clk 0:02:04.7]} 10.
Bd3 {[%clk 0:02:44.6]} 10... e6 {[%clk 0:01:51.1]} 11. O-O {[%clk 0:02:36.4]}
11... Nh5 {[%clk 0:01:23.5]} 12. Bh2 {[%clk 0:02:31.4]} 12... f5 {[%clk
0:01:23.1]} 13. Na4 {[%clk 0:02:29.8]} 13... Nhf6 {[%clk 0:01:19.7]} 14. Bd6
{[%clk 0:02:25.7]} 14... Re8 {[%clk 0:01:15.2]} 15. Qc2 {[%clk 0:02:19]} 15...
Ne4 {[%clk 0:01:14.6]} 16. Bh2 {[%clk 0:02:09.6]} 16... b5 {[%clk 0:01:08.1]}
17. Nc3 {[%clk 0:02:06.1]} 17... Ndf6 {[%clk 0:01:03.3]} 18. Ne5 {[%clk
0:02:04.5]} 18... Bb7 {[%clk 0:00:57.8]} 19. f3 {[%clk 0:01:51.6]} 19... Nd6
{[%clk 0:00:54]} 20. a4 {[%clk 0:01:50.3]} 20... b4 {[%clk 0:00:52.5]} 21. Ne2
{[%clk 0:01:49.9]} 21... Rc8 {[%clk 0:00:48.7]} 22. Qd2 {[%clk 0:01:49.8]} 22...
a5 {[%clk 0:00:47.6]} 23. Nf4 {[%clk 0:01:46.2]} 23... Qe7 {[%clk 0:00:38.6]}
24. b3 {[%clk 0:01:38.2]} 24... Bh6 {[%clk 0:00:34.1]} 25. Rfe1 {[%clk
0:01:33.9]} 25... Kg7 {[%clk 0:00:33.8]} 26. Bg3 {[%clk 0:01:30.9]} 26... g5
{[%clk 0:00:21.7]} 27. Ne2 {[%clk 0:01:28.5]} 27... Nh5 {[%clk 0:00:17.8]} 28.
Bh2 {[%clk 0:01:27.6]} 28... Rf8 {[%clk 0:00:17]} 29. Rc5 {[%clk 0:01:23.4]}
29... f4 {[%clk 0:00:13]} 30. Ng4 {[%clk 0:01:15.6]} 30... Rxc5 {[%clk
0:00:06.1]} 31. dxc5 {[%clk 0:01:15.1]} 31... Nf5 {[%clk 0:00:06.1]} 32. Bxf5
{[%clk 0:01:12.4]} 32... Rxf5 {[%clk 0:00:05.6]} 33. Nd4 {[%clk 0:01:04.3]}
33... Rf8 {[%clk 0:00:03.2]} 34. exf4 {[%clk 0:01:03.9]} 34... Nxf4 {[%clk
0:00:02.4]} 35. Bxf4 {[%clk 0:01:03.9]} 35... Rxf4 {[%clk 0:00:02]} 36. Nxe6+
{[%clk 0:01:03.5]} 36... Kg8 {[%clk 0:00:01.5]} 37. Nxf4 {[%clk 0:01:03]} 37...
Qxc5+ {[%clk 0:00:02.4]} 38. Kh1 {[%clk 0:01:00.8]} 38... gxf4 {[%clk
0:00:02.6]} 39. Qd3 {[%clk 0:00:54.4]} 39... Bg7 {[%clk 0:00:02.6]} 40. Qf5
{[%clk 0:00:49.9]} 40... Qd6 {[%clk 0:00:02]} 41. Re8+ {[%clk 0:00:47.4]} 41...
Bf8 {[%clk 0:00:01.8]} 42. Nf6+ {[%clk 0:00:42.2]} 42... Kg7 {[%clk 0:00:02.1]}
43. Qg5+ {[%clk 0:00:37.9]} 43... Kf7 {[%clk 0:00:02.1]} 44. Qg8+ {[%clk
0:00:37.7]} 44... Kxf6 {[%clk 0:00:02.3]} 45. Rxf8+ {[%clk 0:00:37.8]} 45... Ke5
{[%clk 0:00:02]} 46. Qg7+ {[%clk 0:00:37.9]} 46... Ke6 {[%clk 0:00:01.1]} 47.
Rf6+ {[%clk 0:00:37.8]} 47... Ke5 {[%clk 0:00:01.9]} 48. Rxd6+ {[%clk
0:00:37.6]} 48... Kxd6 {[%clk 0:00:02.8]} 49. Qf6+ {[%clk 0:00:37.2]} 49... Kc5
{[%clk 0:00:02.7]} 50. Qxf4 {[%clk 0:00:37]} 50... Bc6 {[%clk 0:00:03.1]} 51.
Qe5 {[%clk 0:00:34.8]} 51... h6 {[%clk 0:00:03.2]} 52. f4 {[%clk 0:00:33.7]}
52... Kb6 {[%clk 0:00:03.7]} 53. Qd4+ {[%clk 0:00:33.1]} 53... Kc7 {[%clk
0:00:03.8]} 54. f5 {[%clk 0:00:34]} 54... Kd7 {[%clk 0:00:04.1]} 55. g4 {[%clk
0:00:33.2]} 55... h5 {[%clk 0:00:04.2]} 56. gxh5 {[%clk 0:00:32.2]} 56... Ke7
{[%clk 0:00:04.5]} 57. h6 {[%clk 0:00:32.3]} 57... Kf7 {[%clk 0:00:03.2]} 58.
Qg7+ {[%clk 0:00:20]} 58... Ke8 {[%clk 0:00:03.2]} 59. h7 {[%clk 0:00:20.2]}
59... Kd8 {[%clk 0:00:03.7]} 60. h8=Q+ {[%clk 0:00:19.8]} 60... Be8 {[%clk
0:00:04.6]} 61. f6 {[%clk 0:00:19.4]} 61... d4 {[%clk 0:00:04.8]} 62. Qe7+
{[%clk 0:00:19.6]} 62... Kc8 {[%clk 0:00:04.9]} 63. Qhxe8# {[%clk 0:00:20.5]}
1-0

[Event "Late-Titled-Tuesday-Blitz-September-12-2023"]
[Site "Chess.com"]
[Date "2023.09.12"]
[Round "8"]
[White "Beca95"]
[Black "dretch"]
[Result "1-0"]
[WhiteElo "2961"]
[BlackElo "2859"]
[TimeControl "180+1"]
[EndTime "15:24:30 PDT"]
[Termination "Beca95 won by resignation"]

1. c4 {[%clk 0:03:00.9]} 1... c6 {[%clk 0:02:57.4]} 2. Nf3 {[%clk 0:03:01.1]}
2... d5 {[%clk 0:02:57.5]} 3. e3 {[%clk 0:03:01.6]} 3... Bg4 {[%clk 0:02:55.3]}
4. Nc3 {[%clk 0:02:57.5]} 4... e6 {[%clk 0:02:49.7]} 5. h3 {[%clk 0:02:55]} 5...
Bxf3 {[%clk 0:02:47.8]} 6. Qxf3 {[%clk 0:02:55.9]} 6... Nd7 {[%clk 0:02:47.5]}
7. d4 {[%clk 0:02:54.9]} 7... Ngf6 {[%clk 0:02:46.2]} 8. g4 {[%clk 0:02:54.9]}
8... Bb4 {[%clk 0:02:44.9]} 9. Bd3 {[%clk 0:02:32.8]} 9... e5 {[%clk 0:02:35.4]}
10. cxd5 {[%clk 0:01:47.5]} 10... Nxd5 {[%clk 0:02:19.8]} 11. Bd2 {[%clk
0:01:43.4]} 11... exd4 {[%clk 0:02:04.1]} 12. exd4 {[%clk 0:01:44.3]} 12... Qe7+
{[%clk 0:01:54.6]} 13. Kf1 {[%clk 0:01:42.6]} 13... O-O {[%clk 0:01:43]} 14. Re1
{[%clk 0:01:38.3]} 14... Qf6 {[%clk 0:01:37.6]} 15. Qxf6 {[%clk 0:01:34.1]}
15... N7xf6 {[%clk 0:01:30.2]} 16. g5 {[%clk 0:01:33.1]} 16... Nh5 {[%clk
0:01:28.8]} 17. h4 {[%clk 0:01:09.4]} 17... Rad8 {[%clk 0:01:20.9]} 18. Re4
{[%clk 0:00:58.8]} 18... f5 {[%clk 0:01:05.2]} 19. Re5 {[%clk 0:00:55.7]} 19...
Ndf4 {[%clk 0:00:55.6]} 20. Bc4+ {[%clk 0:00:52.4]} 20... Kh8 {[%clk 0:00:54.8]}
21. Be3 {[%clk 0:00:47.6]} 21... Ng6 {[%clk 0:00:47.2]} 22. Re6 {[%clk
0:00:39.7]} 22... f4 {[%clk 0:00:30.7]} 23. Bc1 {[%clk 0:00:39.6]} 23... Rxd4
{[%clk 0:00:28.2]} 24. Bb3 {[%clk 0:00:40.3]} 24... f3 {[%clk 0:00:21.2]} 25.
Be3 {[%clk 0:00:37.3]} 25... Rdd8 {[%clk 0:00:06.8]} 26. Re4 {[%clk 0:00:33.6]}
26... Ba5 {[%clk 0:00:04.3]} 27. Rh3 {[%clk 0:00:29.6]} 27... Bb6 {[%clk
0:00:03.9]} 28. Bc1 {[%clk 0:00:23]} 28... Bc7 {[%clk 0:00:03.7]} 29. Bd1 {[%clk
0:00:22.1]} 29... Nhf4 {[%clk 0:00:03.3]} 30. Rxf3 {[%clk 0:00:16.9]} 30... Nd3
{[%clk 0:00:03.3]} 31. Rxf8+ {[%clk 0:00:16]} 31... Rxf8 {[%clk 0:00:03.9]} 32.
Be3 {[%clk 0:00:16.4]} 32... Bb6 {[%clk 0:00:02.5]} 33. Bxb6 {[%clk 0:00:08.7]}
33... axb6 {[%clk 0:00:03.4]} 34. f3 {[%clk 0:00:09.1]} 34... Nxb2 {[%clk
0:00:03.8]} 35. Be2 {[%clk 0:00:09.6]} 35... Nf4 {[%clk 0:00:04]} 36. Rd4 {[%clk
0:00:08.4]} 36... Rb8 {[%clk 0:00:03.8]} 37. Rd7 {[%clk 0:00:08]} 37... Ng6
{[%clk 0:00:03.3]} 38. h5 {[%clk 0:00:08]} 38... Ne5 {[%clk 0:00:03.8]} 39. Re7
{[%clk 0:00:07.8]} 39... Nec4 {[%clk 0:00:04.3]} 40. f4 {[%clk 0:00:08]} 40...
Kg8 {[%clk 0:00:04.5]} 41. Re4 {[%clk 0:00:07.2]} 41... Nd6 {[%clk 0:00:04.3]}
42. Rd4 {[%clk 0:00:07]} 42... Nf5 {[%clk 0:00:04.6]} 43. Rd2 {[%clk 0:00:07]}
43... Ne3+ {[%clk 0:00:04.4]} 44. Kf2 {[%clk 0:00:07.2]} 44... Nbc4 {[%clk
0:00:04.9]} 45. Rd4 {[%clk 0:00:07.6]} 45... b5 {[%clk 0:00:05.1]} 46. Re4
{[%clk 0:00:07.9]} 46... Nf5 {[%clk 0:00:05.3]} 47. Bxc4+ {[%clk 0:00:08.1]}
47... bxc4 {[%clk 0:00:06.2]} 48. Rxc4 {[%clk 0:00:08.5]} 48... Kf7 {[%clk
0:00:06.8]} 49. Rc5 {[%clk 0:00:08.8]} 49... Nd6 {[%clk 0:00:06.1]} 50. Re5
{[%clk 0:00:08.4]} 50... Ra8 {[%clk 0:00:06.7]} 51. Re2 {[%clk 0:00:08.1]} 51...
Ra3 {[%clk 0:00:06.8]} 52. Ne4 {[%clk 0:00:08.2]} 52... Nxe4+ {[%clk 0:00:07]}
53. Rxe4 {[%clk 0:00:09.1]} 53... Rxa2+ {[%clk 0:00:07.7]} 54. Kf3 {[%clk
0:00:09.8]} 54... b5 {[%clk 0:00:08.2]} 55. Re5 {[%clk 0:00:09.6]} 55... Rc2
{[%clk 0:00:07.8]} 56. Rf5+ {[%clk 0:00:09.8]} 56... Ke7 {[%clk 0:00:08]} 57.
Re5+ {[%clk 0:00:10.3]} 57... Kd6 {[%clk 0:00:08.6]} 58. Rf5 {[%clk 0:00:10.9]}
58... b4 {[%clk 0:00:09.2]} 59. Rf7 {[%clk 0:00:11.1]} 59... b3 {[%clk
0:00:09.7]} 60. Rxg7 {[%clk 0:00:11.3]} 60... b2 {[%clk 0:00:10]} 61. Rb7 {[%clk
0:00:11.4]} 61... c5 {[%clk 0:00:10.1]} 62. g6 {[%clk 0:00:11.9]} 62... hxg6
{[%clk 0:00:09.8]} 63. hxg6 {[%clk 0:00:12.8]} 63... Kc6 {[%clk 0:00:10.5]} 64.
Rb8 {[%clk 0:00:10.6]} 64... Kc7 {[%clk 0:00:10.9]} 65. g7 {[%clk 0:00:11.2]}
65... Kxb8 {[%clk 0:00:09.4]} 66. g8=Q+ {[%clk 0:00:11.2]} 66... Kc7 {[%clk
0:00:09]} 67. Qh7+ {[%clk 0:00:11.2]} 67... Kc6 {[%clk 0:00:09.5]} 68. Qxc2
{[%clk 0:00:11.8]} 1-0